bitfinex/quotes_ETHUSD_20250622
["timestamp","ask_amount","ask_price","bid_price","bid_amount"]
[1750564992524,0.55,2265.8,2264.7,2.8416]
[1750564992729,7.588,2265.7,2265.4,2.64847694]
[1750564993309,10.23625294,2265.7,2265.2,2.64876861]
[1750564993504,0.7799,2265.6,2265.0,2.64894728]
[1750564993718,0.7799,2265.6,2264.3,2.8416]
[1750564993719,0.55,2265.3,2264.3,2.8416]
[1750564993919,0.7799,2265.6,2264.3,2.8416]
[1750564994122,0.7799,2265.6,2265.4,2.64844935]
[1750564994364,7.595,2265.5,2265.4,2.64844935]
[1750564994714,10.7799,2265.9,2265.6,2.6482269]
[1750564994913,7.591,2265.8,2265.6,2.6482269]
[1750564995140,10.7799,2265.9,2265.7,2.64818819]
[1750564995328,10.7799,2265.9,2265.3,2.64864322]
[1750564995329,0.7799,2265.9,2265.8,2.64807132]
[1750564995543,7.591,2265.8,2265.6,2.64828578]
[1750564996355,0.7799,2265.9,2265.5,2.64836579]
[1750564996650,7.594,2265.8,2265.4,2.64850378]
[1750564996949,7.594,2265.8,2265.5,2.64839348]
[1750564997848,7.594,2265.8,2265.4,2.64848735]
[1750564998053,0.55,2265.7,2265.1,2.648866]
[1750564998251,1.53147574,2265.7,2265.2,2.64869573]
[1750564998451,1.53147574,2265.7,2264.8,2.071]
[1750564998452,11.53147574,2265.7,2264.8,2.071]
[1750564998643,11.53147574,2265.7,2265.2,2.64870658]
[1750564998844,14.17968428,2265.7,2265.1,2.64888413]
[1750564999044,0.7737,2265.4,2264.8,2.071]
[1750564999355,0.55,2265.2,2264.3,2.071]
[1750564999555,0.55,2265.2,2265.0,2.64891955]
[1750564999921,7.592,2265.1,2264.8,2.6491699]
[1750565000258,7.592,2265.1,2264.9,2.64911409]
[1750565000555,1.3237,2265.0,2264.0,2.071]
[1750565000766,1.3237,2265.0,2264.7,2.64935142]
[1750565001066,1.3237,2265.0,2264.8,2.64923828]
[1750565001469,1.3237,2265.0,2264.7,2.64931189]
[1750565001774,2.60864519,2265.0,2264.7,2.6493501]
[1750565001953,2.60864519,2265.0,2264.8,2.64923777]
[1750565002787,1.3237,2265.0,2264.9,2.64912358]
[1750565003354,0.7939,2265.3,2264.5,3.42367508]
[1750565003663,0.7939,2265.3,2265.2,2.64877273]
[1750565003862,18.3969,2265.3,2265.2,2.64877273]
[1750565004041,18.3969,2265.3,2265.1,2.64878559]
[1750565004471,18.3969,2265.3,2265.2,2.64877273]
[1750565004674,0.7939,2265.3,2265.2,2.64877273]
[1750565004939,7.599,2265.3,2265.2,2.64877273]
[1750565005680,0.7939,2265.7,2265.4,2.6484306]
[1750565005882,7.6,2265.6,2265.4,2.6484306]
[1750565006105,3.11927195,2265.7,2265.5,2.64842198]
[1750565006409,7.6,2265.6,2265.5,2.64842198]
[1750565006567,7.598,2265.6,2265.5,2.64842198]
[1750565006955,7.598,2265.6,2265.4,2.64849555]
[1750565007288,0.7939,2265.7,2265.4,2.64849555]
[1750565007491,7.596,2265.5,2265.4,2.64849555]
[1750565007985,7.596,2265.5,2265.3,2.64860616]
[1750565008395,7.596,2265.5,2265.4,2.64853888]
[1750565008772,0.7939,2265.7,2265.4,2.64853888]
[1750565008972,0.23049914,2265.8,2265.7,2.64818819]
[1750565009178,7.82249914,2265.8,2265.7,2.64818819]
[1750565009592,0.23049914,2265.8,2265.6,2.64823927]
[1750565009897,7.59,2265.7,2265.6,2.64823927]
[1750565010061,7.59,2265.7,2265.4,2.64851898]
[1750565010280,7.59,2265.7,2265.5,2.6483629]
[1750565010463,7.59,2265.7,2265.4,2.64853497]
[1750565010664,8.14,2265.7,2265.6,2.64830508]
[1750565011064,10.23049914,2265.8,2265.7,2.64818819]
[1750565011270,17.81549914,2265.8,2265.7,2.64818819]
[1750565012411,17.81449914,2265.8,2265.7,2.64818819]
[1750565012614,17.81449914,2265.8,2265.1,0.7733]
[1750565012764,19.59947646,2265.8,2265.5,2.64835805]
[1750565012967,19.59947646,2265.8,2265.2,2.648708]
[1750565012968,0.55,2265.5,2265.2,2.648708]
[1750565013195,7.577,2265.4,2265.2,2.648708]
[1750565013586,7.577,2265.4,2265.3,2.6486558]
[1750565013778,7.577,2265.4,2265.2,2.64874713]
[1750565014098,9.43084203,2265.4,2264.8,2.099]
[1750565014304,9.43084203,2265.4,2265.0,2.64893584]
[1750565014669,0.55,2265.3,2264.9,2.64906943]
[1750565015007,0.8265,2265.2,2264.9,2.64906943]
[1750565015297,7.574,2265.1,2264.9,2.64906943]
[1750565015467,7.574,2265.1,2265.0,2.64900662]
[1750565016101,0.8265,2265.2,2265.0,2.64900662]
[1750565016102,0.8265,2265.2,2265.1,2.64888967]
[1750565016311,7.571,2265.2,2264.5,3.42277733]
[1750565016470,7.571,2265.2,2265.0,2.64894678]
[1750565016671,7.571,2265.2,2264.9,2.64906755]
[1750565017772,8.121,2265.2,2265.1,2.64888967]
[1750565018875,8.111,2265.2,2265.1,2.64888967]
[1750565019408,8.111,2265.2,2265.0,2.64896402]
[1750565019934,8.111,2265.2,2264.8,2.64919628]
[1750565020114,1.3472,2265.1,2264.7,2.64929902]
[1750565020526,0.55,2264.9,2264.5,2.64952485]
[1750565020816,7.556,2264.8,2264.5,2.64959152]
[1750565021115,7.556,2264.8,2264.6,2.64945999]
[1750565021608,7.556,2264.8,2264.6,2.64946958]
[1750565021813,7.556,2264.8,2264.7,2.64935753]
[1750565022179,0.55,2265.0,2264.8,2.64924055]
[1750565022489,8.105,2264.9,2264.7,2.64930264]
[1750565022690,8.105,2264.9,2264.8,2.64924055]
[1750565022901,0.7972,2265.1,2264.9,2.64906311]
[1750565023115,7.554,2265.0,2264.9,2.64906311]
[1750565023273,7.554,2265.0,2264.8,2.64919054]
[1750565023612,7.554,2265.0,2264.9,2.64912358]
[1750565023829,0.7972,2265.1,2265.0,2.64900662]
[1750565024129,7.55,2265.1,2264.9,2.64908934]
[1750565025104,7.55,2265.1,2265.0,2.64900662]
[1750565025430,7.549,2265.1,2265.0,2.64900662]
[1750565026015,12.40384203,2265.4,2265.1,2.64882149]
[1750565026216,10.55,2265.2,2265.1,2.64882149]
[1750565027045,10.55,2265.2,2265.0,2.64894635]
[1750565027330,10.55,2265.2,2264.5,2.64949204]
[1750565027629,12.10408936,2265.2,2264.9,2.64909992]
[1750565028398,12.10408936,2265.2,2264.5,2.64958093]
[1750565028399,0.7933,2265.0,2264.5,2.64958093]
[1750565028599,7.538,2264.9,2264.5,2.64958093]
[1750565028796,7.97362413,2264.9,2264.6,2.64941106]
[1750565029412,7.97362413,2264.9,2264.7,2.64933574]
[1750565029732,7.97362413,2264.9,2264.8,2.64924055]
[1750565029959,8.20416315,2264.9,2264.7,2.6493206]
[1750565030131,8.20416315,2264.9,2264.8,2.64924055]
[1750565030836,0.66616315,2264.9,2264.8,2.64924055]
[1750565031241,8.20316315,2264.9,2264.8,2.64924055]
[1750565031549,0.23053902,2264.9,2264.8,3.17909799]
[1750565031709,0.23053902,2264.9,2264.8,3.96829799]
[1750565032629,10.0,2265.4,2265.2,2.64866736]
[1750565032931,17.539,2265.3,2265.2,2.64866736]
[1750565033463,0.23049137,2265.4,2265.3,3.4246558]
[1750565033609,0.759,2265.8,2265.5,2.64836526]
[1750565033938,0.759,2266.0,2265.7,2.64816327]
[1750565034151,7.536,2265.9,2265.7,2.64809555]
[1750565034510,10.0,2265.8,2265.7,2.64809555]
[1750565034994,0.23046109,2265.9,2265.8,2.64807132]
[1750565035128,7.76646109,2265.9,2265.8,2.64807132]
[1750565035443,7.76646109,2265.9,2265.7,2.64813269]
[1750565035946,7.76646109,2265.9,2265.8,2.64807132]
[1750565036752,7.76146109,2265.9,2265.8,3.47767132]
[1750565037124,7.76146109,2265.9,2265.8,4.09025604]
[1750565037440,7.531,2265.9,2265.8,4.09025604]
[1750565037621,0.23043331,2266.0,2265.9,2.64795445]
[1750565037944,7.524,2266.1,2266.0,2.64783759]
[1750565038149,7.75443244,2266.1,2266.0,2.64783759]
[1750565038711,7.75443244,2266.1,2266.0,3.35006763]
[1750565038712,0.23043244,2266.1,2266.0,3.35006763]
[1750565038954,7.519,2266.6,2266.5,2.64725347]
[1750565039437,7.74939208,2266.6,2266.5,2.64725347]
[1750565042911,0.23039208,2266.6,2266.5,2.64725347]
[1750565043255,2.057,2267.2,2266.4,2.64734995]
[1750565043256,0.8183,2267.5,2267.4,2.64620269]
[1750565043426,0.8183,2267.8,2267.7,2.64585262]
[1750565043627,0.8183,2267.8,2267.1,3.47613786]
[1750565043628,11.528,2267.8,2267.6,2.64595036]
[1750565043826,0.23036158,2267.5,2267.4,2.64619592]
[1750565044025,7.527,2267.6,2267.5,2.64608599]
[1750565044250,7.527,2267.6,2267.2,2.057]
[1750565044458,7.75735754,2267.6,2267.4,2.6461537]
[1750565044617,0.23035754,2267.6,2267.3,2.64622589]
[1750565044817,7.75535754,2267.6,2267.3,2.64622589]
[1750565045027,7.75535754,2267.6,2267.5,2.64608599]
[1750565045834,0.23035754,2267.6,2267.5,2.64608599]
[1750565046426,0.23035754,2267.6,2267.5,3.40998599]
[1750565047761,7.521,2267.8,2267.7,2.64585262]
[1750565048261,7.521,2267.8,2267.4,2.64619453]
[1750565048262,7.75135923,2267.8,2267.4,2.64619453]
[1750565048563,0.7812,2267.7,2267.3,2.64627279]
[1750565048754,10.0,2267.5,2267.0,2.64661416]
[1750565048944,0.55,2267.6,2267.1,2.64653974]
[1750565049324,10.0,2267.5,2267.1,2.64653974]
[1750565049867,10.0,2267.5,2267.0,2.64663512]
[1750565049868,14.04383246,2267.5,2267.0,2.64663512]
[1750565050024,11.39771765,2267.5,2267.1,2.64654813]
[1750565050228,1.39771765,2267.5,2267.2,2.64641257]
[1750565050535,1.39771765,2267.5,2267.1,2.64650256]
[1750565050852,0.7796558,2267.2,2266.8,2.64684748]
[1750565051170,7.515,2267.1,2266.8,2.64684748]
[1750565051461,7.515,2267.1,2266.9,2.64677061]
[1750565051661,7.515,2267.1,2267.0,2.6466696]
[1750565052227,7.515,2267.1,2267.0,3.4110696]
[1750565052428,7.516,2267.4,2267.3,2.64631941]
[1750565052638,7.516,2267.4,2267.2,2.64639566]
[1750565052966,7.516,2267.4,2267.1,2.64649226]
[1750565053164,7.516,2267.4,2267.1,2.64652315]
[1750565053363,7.516,2267.5,2267.3,2.64622294]
[1750565053665,7.516,2267.5,2267.4,2.64620269]
[1750565053966,7.513,2267.6,2267.5,2.64602044]
[1750565054671,0.23035923,2267.8,2267.7,2.64585262]
[1750565054827,7.74335923,2267.8,2267.7,2.64585262]
[1750565057441,0.23035923,2267.8,2267.7,2.64585262]
[1750565057649,0.23035923,2267.8,2267.7,3.25147273]
[1750565058350,0.23035923,2267.8,2267.7,14.01927273]
[1750565058544,7.503,2268.8,2268.5,2.64485643]
[1750565058771,0.8217,2269.5,2268.6,2.64480296]
[1750565058971,0.8217,2269.5,2269.3,2.64390158]
[1750565059173,0.44206528,2269.8,2269.7,2.64345636]
[1750565059345,0.53147441,2270.0,2269.9,2.64328825]
[1750565059679,0.23019673,2269.8,2269.7,2.64352117]
[1750565062001,0.23019673,2269.8,2269.7,3.41132117]
[1750565062303,0.53147441,2270.0,2269.9,2.64328825]
[1750565062756,0.76165374,2270.0,2269.9,2.64328825]
[1750565062958,0.76165374,2270.0,2269.9,2.68734085]
[1750565063254,0.76165374,2270.0,2269.9,2.64328825]
[1750565063489,0.76165374,2270.0,2269.9,5.42165067]
[1750565063701,0.76165374,2270.0,2269.9,6.18945067]
[1750565063872,0.53147441,2270.0,2269.9,6.14539827]
[1750565064767,0.53147441,2270.0,2269.9,4.09039827]
[1750565064971,0.53147441,2270.0,2269.9,6.14539827]
[1750565065781,0.53147441,2270.0,2269.9,16.1894442]
[1750565065982,0.53147441,2270.0,2269.9,16.14539827]
[1750565069596,0.53147441,2270.0,2269.9,16.69539827]
[1750565069801,0.53147441,2270.0,2269.9,16.14539827]
[1750565070014,0.53147441,2270.0,2269.9,16.69539827]
[1750565070220,0.45516707,2270.7,2269.9,16.69539827]
[1750565070394,0.2250067,2270.7,2270.6,3.39267335]
[1750565070577,0.2250067,2270.7,2270.6,5.49370635]
[1750565070779,0.2250067,2270.7,2270.6,15.49370635]
[1750565070980,0.2250067,2270.7,2270.6,15.44967335]
[1750565071521,0.2250067,2270.7,2270.6,2.64247335]
[1750565072023,0.7867,2270.6,2270.1,2.64295214]
[1750565072219,0.7867,2270.6,2270.2,2.64287033]
[1750565072431,0.7867,2270.6,2270.3,2.64280184]
[1750565073005,0.7867,2270.6,2270.4,2.64264555]
[1750565073204,0.7867,2270.6,2270.5,2.64258973]
[1750565074402,0.2250067,2270.7,2270.6,2.64247335]
[1750565075307,0.2250067,2270.7,2270.4,0.04404087]
[1750565075511,0.7867,2270.6,2270.4,2.64260065]
[1750565076341,0.7867,2270.6,2270.5,2.64258973]
[1750565077225,0.7867,2270.6,2270.4,2.64265996]
[1750565077615,8.3217,2270.6,2270.4,2.64265996]
[1750565077929,9.24303734,2270.6,2270.3,2.64275395]
[1750565078222,9.24303734,2270.6,2270.5,2.64258973]
[1750565078631,8.3217,2270.6,2270.5,2.64258973]
[1750565079424,0.7867,2270.6,2270.5,2.64258973]
[1750565079633,8.3137,2270.6,2270.5,2.64258973]
[1750565080579,0.7867,2270.6,2270.5,2.64258973]
[1750565080777,0.2250067,2270.7,2270.6,2.64247335]
[1750565081667,0.2250067,2270.7,2270.6,5.49124834]
[1750565081826,0.2250067,2270.7,2270.6,5.53528456]
[1750565082229,0.2250067,2270.7,2270.6,6.33288456]
[1750565082433,0.2250067,2270.7,2270.6,16.33288456]
[1750565082642,0.2250067,2270.7,2270.6,16.28884834]
[1750565083467,0.2250067,2270.7,2270.6,14.23284834]
[1750565083774,0.2250067,2270.7,2270.6,4.69847335]
[1750565084069,0.2250067,2270.7,2270.6,2.64247335]
[1750565084281,1.0068067,2270.7,2270.6,2.64247335]
[1750565084972,0.2250067,2270.7,2270.6,3.44007335]
[1750565085131,0.2250067,2270.7,2270.6,3.48410841]
[1750565085332,0.2250067,2270.7,2270.6,4.30237822]
[1750565085937,0.2250067,2270.7,2270.6,14.30237822]
[1750565086271,0.2250067,2270.7,2270.6,14.25834316]
[1750565087067,0.2250067,2270.7,2270.6,21.79134316]
[1750565087974,0.2250067,2270.7,2270.6,16.31434316]
[1750565089553,0.2250067,2270.7,2270.6,16.86434316]
[1750565094450,0.58372804,2270.9,2270.8,3.97484062]
[1750565094666,0.58372804,2270.9,2270.8,21.49184062]
[1750565096565,0.58372804,2270.9,2270.8,13.97484062]
[1750565096870,0.58372804,2270.9,2270.8,23.53984062]
[1750565097858,0.63598167,2271.8,2271.7,2.64119381]
[1750565098196,0.63598167,2271.8,2271.7,5.22244206]
[1750565098583,0.63598167,2271.8,2271.7,4.73820558]
[1750565098757,0.63598167,2271.8,2271.7,4.69419381]
[1750565099601,0.63598167,2271.8,2271.7,2.64119381]
[1750565099908,0.63598167,2271.8,2271.7,4.69419381]
[1750565101061,0.63598167,2271.8,2271.7,14.69419381]
[1750565102177,0.63598167,2271.8,2271.7,12.64119381]
[1750565102380,0.63598167,2271.8,2271.7,22.20719381]
[1750565102796,0.63598167,2271.8,2271.7,12.64119381]
[1750565103015,0.63598167,2271.8,2271.7,22.20819381]
[1750565103704,0.63598167,2271.8,2271.7,2.64119381]
[1750565104777,1.46168167,2271.8,2271.7,2.64119381]
[1750565109714,0.63598167,2271.8,2271.7,3.37474379]
[1750565112870,0.63598167,2271.8,2271.7,3.41875441]
[1750565113108,0.63598167,2271.8,2271.7,14.17995441]
[1750565113283,0.63598167,2271.8,2271.7,14.13594379]
[1750565113912,0.63598167,2271.8,2271.7,2.64119381]
[1750565113913,1.42798167,2271.8,2271.7,2.64119381]
[1750565114684,0.63598167,2271.8,2271.7,2.64119381]
[1750565114990,0.63598167,2271.8,2271.7,2.68520508]
[1750565115193,0.63598167,2271.8,2271.7,3.47110508]
[1750565115588,0.63598167,2271.8,2271.7,20.96610508]
[1750565115913,0.63598167,2271.8,2271.7,20.92209381]
[1750565117631,0.63598167,2271.8,2271.7,21.47209381]
[1750565120916,0.63598167,2271.8,2271.7,14.69319381]
[1750565122231,0.63598167,2271.8,2271.7,22.17419381]
[1750565122518,0.63598167,2271.8,2271.7,14.69319381]
[1750565122716,0.63598167,2271.8,2271.7,22.17719381]
[1750565122881,0.63598167,2271.8,2271.7,12.64119381]
[1750565123079,1.45808167,2271.8,2271.7,22.17719381]
[1750565123303,1.45808167,2271.8,2271.7,14.69319381]
[1750565123501,0.63598167,2271.8,2271.7,14.69319381]
[1750565125792,0.63598167,2271.8,2271.7,15.45239381]
[1750565126004,0.63598167,2271.8,2271.7,13.83608804]
[1750565126215,0.63598167,2271.8,2271.7,23.36808804]
[1750565127084,0.63598167,2271.8,2271.7,23.91808804]
[1750565127797,0.34925845,2272.6,2272.5,2.64026402]
[1750565128000,0.34925845,2272.6,2272.5,12.17226402]
[1750565128198,0.34925845,2272.6,2272.5,13.73354645]
[1750565128787,0.34925845,2272.6,2272.5,2.64026402]
[1750565129005,1.15025845,2272.6,2272.5,4.67726402]
[1750565129320,0.801,2272.5,2272.4,2.64032259]
[1750565129499,0.801,2272.5,2272.3,2.64044068]
[1750565130094,0.801,2272.5,2272.4,2.64038021]
[1750565131296,0.34925845,2272.6,2272.5,2.64026402]
[1750565131524,0.34925845,2272.6,2272.5,4.67626402]
[1750565132248,0.34925845,2272.6,2272.5,2.64026402]
[1750565132534,1.15025845,2272.6,2272.5,2.64026402]
[1750565134832,0.34925845,2272.6,2272.5,2.64026402]
[1750565136420,0.34925845,2272.6,2272.5,2.68426099]
[1750565136833,0.34925845,2272.6,2272.5,2.64026402]
[1750565137041,0.34925845,2272.6,2272.5,4.67626402]
[1750565138251,0.34925845,2272.6,2272.5,2.64026402]
[1750565139527,0.34925845,2272.6,2272.5,2.68426424]
[1750565140146,0.34925845,2272.6,2272.5,2.64026402]
[1750565141338,1.10835845,2272.6,2272.5,2.64026402]
[1750565141722,1.10835845,2272.6,2270.7,13.14599303]
[1750565141918,0.7591,2272.5,2272.1,2.640666]
[1750565142118,0.7591,2272.5,2272.2,2.64054001]
[1750565142353,0.7591,2272.5,2272.1,2.64068487]
[1750565142730,0.7591,2272.5,2272.2,2.64059974]
[1750565143127,0.22999185,2272.4,2272.2,2.64059974]
[1750565143459,0.776,2272.3,2272.2,2.64059974]
[1750565143625,0.776,2272.3,2272.2,3.37233111]
[1750565143955,0.22999185,2272.4,2272.3,2.64049641]
[1750565144250,0.22999185,2272.4,2272.3,2.68449948]
[1750565144419,0.776,2272.5,2272.4,2.64038021]
[1750565144617,0.34925845,2272.6,2272.5,2.64026402]
[1750565145641,0.34925845,2272.6,2272.5,4.67626402]
[1750565146155,0.34925845,2272.6,2272.5,5.29592579]
[1750565147362,0.34925845,2272.6,2272.5,4.67626402]
[1750565150352,0.34925845,2272.6,2272.5,15.43776402]
[1750565152353,0.34925845,2272.6,2272.5,15.98776402]
[1750565153456,0.34925845,2272.6,2272.5,15.43776402]
[1750565153626,0.34925845,2272.6,2272.5,14.67626402]
[1750565153826,0.34925845,2272.6,2272.5,16.39653717]
[1750565154958,0.34925845,2272.6,2272.5,17.74293717]
[1750565158453,0.34925845,2272.6,2272.5,17.19293717]
[1750565159578,0.34925845,2272.6,2272.5,17.74293717]
[1750565162657,0.34925845,2272.6,2272.5,28.31093717]
[1750565164088,0.34925845,2272.6,2272.5,28.83001838]
[1750565164393,0.34925845,2272.6,2272.5,29.76395192]
[1750565164556,0.2250067,2273.0,2272.9,13.18979937]
[1750565164752,0.2250067,2273.0,2272.9,27.85822377]
[1750565164980,0.2250067,2273.0,2272.9,24.20923074]
[1750565165403,0.2250067,2273.0,2272.9,24.57650717]
[1750565165717,0.22982845,2273.9,2273.4,3.97991879]
[1750565165878,0.8208,2274.3,2273.4,23.47691879]
[1750565166073,1.05059387,2274.3,2273.4,25.19719194]
[1750565168230,0.22979387,2274.3,2273.4,25.19719194]
[1750565168881,0.22979387,2274.3,2273.4,25.19519194]
[1750565169211,0.7988,2274.1,2273.4,25.19519194]
[1750565169386,0.22979387,2274.3,2273.4,25.19519194]
[1750565170881,0.22979387,2274.3,2273.4,25.56238759]
[1750565171617,0.79274255,2274.4,2274.3,12.63817438]
[1750565171783,0.79274255,2274.4,2274.3,22.86390575]
[1750565172319,0.79274255,2274.4,2274.3,13.36990575]
[1750565172487,1.60874255,2274.4,2274.3,22.13217438]
[1750565172689,1.55874255,2274.4,2274.3,4.66617438]
[1750565173091,0.816,2274.3,2273.6,2.63898662]
[1750565173322,0.816,2274.3,2274.2,2.63829038]
[1750565174920,0.816,2274.3,2274.2,4.66629038]
[1750565175128,0.816,2274.3,2274.2,5.39675927]
[1750565175485,0.816,2274.3,2274.2,4.66629038]
[1750565175821,0.816,2274.3,2274.2,14.66629038]
[1750565178810,0.74274255,2274.4,2274.3,12.63817438]
[1750565180209,0.74274255,2274.4,2274.3,13.45047438]
[1750565180422,0.74274255,2274.4,2274.3,12.63817438]
[1750565181826,0.74274255,2274.4,2274.3,22.12917438]
[1750565183454,1.51204255,2274.4,2274.3,22.12817438]
[1750565183667,1.51204255,2274.4,2274.3,12.63817438]
[1750565184016,1.51204255,2274.4,2274.3,2.63817438]
[1750565184215,0.7693,2274.3,2274.0,2.63851777]
[1750565184413,0.7693,2274.3,2274.2,2.63829038]
[1750565184616,30.0,2274.2,2273.4,2.63920233]
[1750565184816,0.7693,2274.0,2273.9,2.63857841]
[1750565185012,0.7693,2274.0,2273.8,2.63871025]
[1750565185229,0.7693,2274.0,2273.5,2.027]
[1750565185501,0.7693,2274.0,2273.9,2.63863846]
[1750565187052,0.99915215,2274.0,2273.9,2.63863846]
[1750565187257,0.99915215,2274.0,2273.9,5.23735565]
[1750565187452,0.74274255,2274.4,2274.3,2.63817438]
[1750565187852,0.74274255,2274.4,2274.3,12.63817438]
[1750565188154,1.51134255,2274.4,2274.3,12.63817438]
[1750565190474,0.74274255,2274.4,2274.3,12.63817438]
[1750565193057,0.74274255,2274.4,2274.3,20.10117438]
[1750565193969,0.74274255,2274.4,2274.3,24.76117438]
[1750565194684,0.74274255,2274.4,2274.3,25.51437438]
[1750565197001,0.74274255,2274.4,2274.3,18.05137438]
[1750565197171,0.74274255,2274.4,2274.3,27.53937438]
[1750565197565,0.74274255,2274.4,2274.3,28.62504805]
[1750565198400,0.74274255,2274.4,2274.3,29.17504805]
[1750565198589,0.74274255,2274.4,2274.3,42.32104108]
[1750565199197,0.74274255,2274.4,2274.3,41.80195987]
[1750565201192,0.74274255,2274.4,2274.3,28.08837438]
[1750565201997,0.74274255,2274.4,2274.3,41.23436741]
[1750565204333,0.74274255,2274.4,2274.3,41.80095987]
[1750565205318,0.74274255,2274.4,2274.3,42.32004108]
[1750565205517,0.01,2274.8,2274.7,3.40701046]
[1750565205718,0.01,2274.8,2274.7,20.90995371]
[1750565206020,0.01,2274.8,2274.7,20.86601046]
[1750565206220,0.01,2274.8,2274.7,21.41601046]
[1750565207215,0.01,2274.8,2274.7,12.12271046]
[1750565207416,0.01,2274.8,2274.7,23.44631046]
[1750565208020,0.01,2274.8,2274.7,23.88277162]
[1750565210922,0.01,2274.8,2274.7,23.33077162]
[1750565211629,0.01,2274.8,2274.7,23.88077162]
[1750565212724,0.01,2274.8,2274.7,16.42377162]
[1750565213026,0.01,2274.8,2274.7,23.88077162]
[1750565214439,0.01,2274.8,2274.7,13.84777162]
[1750565214597,0.01,2274.8,2274.7,23.88077162]
[1750565216002,0.2250067,2275.2,2275.1,13.40134671]
[1750565216200,0.2250067,2275.2,2275.1,20.85734671]
[1750565220728,0.2250067,2275.2,2275.1,21.40734671]
[1750565221029,0.2250067,2275.2,2275.1,22.11424671]
[1750565222495,0.2250067,2275.2,2275.1,22.66424671]
[1750565222697,0.2250067,2275.2,2275.1,23.42214671]
[1750565222930,0.2250067,2275.2,2275.1,23.98868058]
[1750565223792,0.34616767,2275.8,2275.7,2.63655139]
[1750565223997,0.34616767,2275.8,2275.7,33.1938712]
[1750565224850,0.34616767,2275.8,2275.7,33.7438712]
[1750565225127,0.34616767,2275.8,2275.7,46.88986423]
[1750565225332,0.34616767,2275.8,2275.7,47.64776423]
[1750565225503,0.34616767,2275.8,2275.7,34.32076075]
[1750565225705,0.34616767,2275.8,2275.7,24.4757712]
[1750565225913,0.34616767,2275.8,2275.7,33.1938712]
[1750565226107,0.34616767,2275.8,2275.7,23.7178712]
[1750565226312,0.34616767,2275.8,2275.7,33.1938712]
[1750565226507,0.29616767,2275.8,2275.7,33.1938712]
[1750565227547,1.11636767,2275.8,2275.4,2.023]
[1750565227713,0.8202,2275.7,2275.4,4.65989054]
[1750565228042,0.8202,2275.7,2274.9,13.1903751]
[1750565228222,30.0,2275.6,2275.1,2.63716441]
[1750565228427,0.8202,2275.4,2274.9,13.19047651]
[1750565228626,0.8202,2275.3,2274.8,4.66055138]
[1750565228941,0.8202,2275.3,2274.1,13.19136302]
[1750565228942,0.8202,2275.3,2274.6,2.023]
[1750565229232,0.8202,2275.3,2275.0,2.63729713]
[1750565229604,0.8202,2275.3,2274.7,2.023]
[1750565229805,0.7925,2275.1,2274.9,2.63745563]
[1750565230120,0.7925,2275.1,2275.0,2.63736263]
[1750565232254,0.7925,2275.1,2274.9,2.63737832]
[1750565233162,0.7925,2275.1,2274.6,2.63778556]
[1750565233460,0.7925,2275.1,2274.7,2.63771044]
[1750565233659,0.7925,2275.1,2274.9,2.63747675]
[1750565234729,0.7925,2275.1,2275.0,2.63736263]
[1750565235561,0.7925,2275.1,2274.6,2.023]
[1750565236027,2.1829493,2275.0,2274.9,2.6374026]
[1750565236228,0.7891,2275.0,2274.9,2.6374026]
[1750565236631,0.7891,2275.0,2274.8,2.63755162]
[1750565237156,0.7891,2275.0,2274.9,2.63747857]
[1750565241266,0.7891,2275.0,2274.1,10.553]
[1750565241442,0.7815,2274.9,2274.7,2.63763042]
[1750565241647,2.1742493,2274.8,2274.7,2.63763042]
[1750565242252,0.7815,2274.8,2274.4,2.63802018]
[1750565242444,0.7815,2274.8,2274.5,2.63788039]
[1750565242643,0.7815,2274.8,2274.6,2.63782348]
[1750565243671,0.7815,2274.8,2274.7,2.63771046]
[1750565244039,0.7815,2274.8,2274.5,2.63791271]
[1750565244240,0.7815,2274.8,2274.6,2.6377206]
[1750565244459,0.7815,2274.7,2274.6,2.6377206]
[1750565249082,0.22977044,2274.9,2274.8,12.63759451]
[1750565249579,0.22977044,2274.9,2274.8,14.65959451]
[1750565251151,0.22977044,2274.9,2274.8,12.63759451]
[1750565251888,0.22977044,2274.9,2274.8,2.63759451]
[1750565252246,1.03537044,2274.9,2274.8,2.63759451]
[1750565255282,1.03537044,2274.9,2274.8,4.09709489]
[1750565256998,0.22977044,2274.9,2274.8,4.09709489]
[1750565257192,0.22977044,2274.9,2274.8,4.14105021]
[1750565257594,0.22977044,2274.9,2274.8,14.14105021]
[1750565257779,0.22977044,2274.9,2274.8,14.09709489]
[1750565257985,0.29616767,2275.8,2275.7,2.63655139]
[1750565258475,1.34875431,2275.8,2275.7,2.63655139]
[1750565258675,2.48362974,2275.8,2275.7,2.63655139]
[1750565259197,0.8229,2275.7,2275.6,2.63660427]
[1750565259515,0.8229,2275.7,2275.5,2.63670979]
[1750565259516,0.8229,2275.7,2275.5,2.63668217]
[1750565259870,0.8229,2275.7,2275.6,2.63666725]
[1750565260115,1.07126297,2275.7,2275.6,2.63666725]
[1750565261016,0.8229,2275.6,2275.5,2.63672716]
[1750565261220,0.8229,2275.6,2275.3,4.65898194]
[1750565261521,0.8229,2275.6,2275.3,2.022]
[1750565261715,0.8229,2275.6,2275.4,2.63680735]
[1750565261918,0.8229,2275.6,2275.3,2.022]
[1750565262215,0.8229,2275.6,2275.2,2.63708824]
[1750565262425,0.41417555,2275.5,2275.3,2.6369941]
[1750565262587,0.8261,2275.4,2275.3,2.6369941]
[1750565263413,0.8261,2275.4,2275.3,2.63701489]
[1750565263826,0.8261,2275.4,2274.4,2.022]
[1750565263827,0.8261,2275.1,2274.4,2.022]
[1750565264127,0.8261,2274.9,2274.7,2.63760305]
[1750565264415,0.8261,2274.8,2274.5,2.63787002]
[1750565264720,0.8261,2274.8,2274.7,2.63771046]
[1750565265024,0.8261,2274.8,2274.5,2.6379424]
[1750565265203,0.8261,2274.8,2274.6,2.63779754]
[1750565266802,0.8261,2274.8,2274.7,2.63771046]
[1750565267002,1.736691,2274.8,2274.7,2.63771046]
[1750565267704,1.736691,2274.8,2274.6,2.63781537]
[1750565267904,0.7946,2274.7,2274.1,10.553]
[1750565268133,40.0,2274.6,2274.1,2.022]
[1750565268284,0.7946,2274.4,2274.3,2.63811098]
[1750565268777,0.7946,2274.4,2273.7,4.66077044]
[1750565268984,8.2466,2274.4,2273.8,2.6387545]
[1750565269414,8.2466,2274.4,2274.3,2.63817438]
[1750565269587,9.11501212,2274.4,2274.3,2.63817438]
[1750565271223,1.66301212,2274.4,2274.3,2.63817438]